Department Family,Entity,Date,Expense Type,Expense Area,Supplier,Transaction Number,Amount
DOH,London Ambulance Service NHS Trust,11/03/2022,Medical Equipment,Managed Stores,Nhs Supply Chain,6291,"40,235.52"
DOH,London Ambulance Service NHS Trust,11/03/2022,Medical Equipment,Supply & Material Management,Nhs Supply Chain,6310,"52,800.00"
DOH,London Ambulance Service NHS Trust,09/03/2022,Professional Fees & Services,Ambulance Ops Hub Phase 1,Moorhouse Consulting,631215,"42,520.80"
DOH,London Ambulance Service NHS Trust,09/03/2022,Professional Fees & Services,111 Iuc Central Cost,Moorhouse Consulting,631265,"28,080.00"
DOH,London Ambulance Service NHS Trust,16/03/2022,Personal Issue Items,Supply & Material Management,Welch Allyn,632932,"29,400.00"
DOH,London Ambulance Service NHS Trust,24/03/2022,Seconded Staff Senior Managers,Strategy & Transformation Mgmt,Nhs Trust Development Authority,6350,"42,835.60"
DOH,London Ambulance Service NHS Trust,16/03/2022,Ambulance Equipment,Supply & Material Management,Stryker Uk Ltd,635266,"29,160.00"
DOH,London Ambulance Service NHS Trust,01/03/2022,Project Management,Capital,Daisy Communications Ltd,637441,"33,391.20"
DOH,London Ambulance Service NHS Trust,16/03/2022,Ambulance Equipment,Supply & Material Management,Stryker Uk Ltd,638074,"28,800.00"
DOH,London Ambulance Service NHS Trust,01/03/2022,Private Ambulance Hire,Ops Central - Private Amb,Medicare Ems Group Uk Limited,638186,"48,875.50"
DOH,London Ambulance Service NHS Trust,23/03/2022,Medical Equipment,Supply & Material Management,Proact Medical Ltd,639457,"40,848.02"
DOH,London Ambulance Service NHS Trust,01/03/2022,Defibrillator Leases,Covid-19 - Logistics,De Lage Landen Leasing Ltd,639776,"43,200.00"
DOH,London Ambulance Service NHS Trust,09/03/2022,Buildings,Capital,Pip Lift Service Ltd,639873,"31,004.82"
DOH,London Ambulance Service NHS Trust,01/03/2022,Computer Software Maintenance,Microsoft Licenses,Boxxe,640811,"528,924.67"
DOH,London Ambulance Service NHS Trust,16/03/2022,Consultancy Fees,Quality & Assurance Management,Moorhouse Consulting,643020,"100,159.20"
DOH,London Ambulance Service NHS Trust,01/03/2022,Private Ambulance Hire,Covid-19 - Ambulance Services,Medicare Ems Group Uk Limited,643042,"38,009.40"
DOH,London Ambulance Service NHS Trust,01/03/2022,Private Ambulance Hire,Covid-19 - Ambulance Services,Medicare Ems Group Uk Limited,643149,"52,918.18"
DOH,London Ambulance Service NHS Trust,01/03/2022,Mobile Display Unit,Capital,Telent Technology Services Ltd,643594,"100,596.00"
DOH,London Ambulance Service NHS Trust,01/03/2022,Private Ambulance Hire,Covid-19 - Ambulance Services,Medicare Ems Group Uk Limited,643707,"50,735.75"
DOH,London Ambulance Service NHS Trust,01/03/2022,Private Ambulance Hire,Covid-19 - Ambulance Services,Medicare Ems Group Uk Limited,644072,"55,039.84"
DOH,London Ambulance Service NHS Trust,01/03/2022,Private Ambulance Hire,Covid-19 - Ambulance Services,Se Medical Limited,644250,"26,225.53"
DOH,London Ambulance Service NHS Trust,11/03/2022,Professional Fees & Services,111 Iuc Central Cost,Moorhouse Consulting,644419,"58,344.00"
DOH,London Ambulance Service NHS Trust,02/03/2022,Security Firms,Hq Building Services,Profile Security Services Limited,644628,"27,057.77"
DOH,London Ambulance Service NHS Trust,01/03/2022,Occupational Health Fees,P&C Management,People Asset Management Ltd,645273,"88,759.20"
DOH,London Ambulance Service NHS Trust,02/03/2022,Phone & Fax Line Rental,Networks,Bt Teleworker,645336,"84,004.02"
DOH,London Ambulance Service NHS Trust,01/03/2022,Private Ambulance Hire,Covid-19 - Ambulance Services,Medicare Ems Group Uk Limited,645846,"45,010.00"
DOH,London Ambulance Service NHS Trust,23/03/2022,Lease Costs For Ops Vehicles,Non Emergency Transport,Tp Leasing Ltd,645913,"34,424.02"
DOH,London Ambulance Service NHS Trust,01/03/2022,Make Ready Support,Make Ready Service,Interserve Hospital Services,646205,"26,510.40"
DOH,London Ambulance Service NHS Trust,01/03/2022,Make Ready Support,Make Ready Service,Interserve Hospital Services,646206,"140,276.80"
DOH,London Ambulance Service NHS Trust,01/03/2022,Managed Service - Call Handler,111 Nwl Operations,London Central And West Ucc,646242,"-207,671.27"
DOH,London Ambulance Service NHS Trust,11/03/2022,Rent,Maritime House Training Centre,Dooba Investments Iii Limited,646243,"194,201.10"
DOH,London Ambulance Service NHS Trust,11/03/2022,Service Charges,Maritime House Training Centre,Dooba Investments Iii Limited,646243,"82,761.01"
DOH,London Ambulance Service NHS Trust,01/03/2022,Managed Service - Call Handler,111 Nwl Operations,London Central And West Ucc,646616,"247,990.75"
DOH,London Ambulance Service NHS Trust,02/03/2022,Managed Service - Call Handler,111 Nwl Operations,Practice Plus Group Urgent Care Limited,646789,"639,555.10"
DOH,London Ambulance Service NHS Trust,01/03/2022,Tyres,Fleet Support Services,Ats Euromaster Ltd,646802,"25,924.64"
DOH,London Ambulance Service NHS Trust,16/03/2022,Vehicles,Capital,Mangar International Ltd,646825,"29,959.20"
DOH,London Ambulance Service NHS Trust,04/03/2022,Professional Fees & Services,Fleet Support Services,Brs Jobs Ltd,646840,"58,343.36"
DOH,London Ambulance Service NHS Trust,01/03/2022,Private Ambulance Hire,Covid-19 - Ambulance Services,Medicare Ems Group Uk Limited,646851,"43,354.54"
DOH,London Ambulance Service NHS Trust,09/03/2022,Professional Fees & Services,Infrastructure Modernisation,Mason Advisory Limited,647169,"101,364.01"
DOH,London Ambulance Service NHS Trust,01/03/2022,Buildings,Capital,Logan Construction,647772,"215,586.61"
DOH,London Ambulance Service NHS Trust,01/03/2022,Buildings,Capital,Logan Construction,647808,"202,069.98"
DOH,London Ambulance Service NHS Trust,01/03/2022,Computer Hardware,Capital,Cdw Ltd,648029,"65,729.23"
DOH,London Ambulance Service NHS Trust,16/03/2022,Make Ready Support,Make Ready Service,Interserve Hospital Services,648090,"264,526.73"
DOH,London Ambulance Service NHS Trust,09/03/2022,Professional Fees & Services,Programmes & Projects,Moorhouse Consulting,648216,"25,454.40"
DOH,London Ambulance Service NHS Trust,18/03/2022,Consultancy Fees,"Culture, Diversity & Inclusion",Moorhouse Consulting,648217,"27,240.00"
DOH,London Ambulance Service NHS Trust,11/03/2022,Private Ambulance Hire,Covid-19 - Ambulance Services,Medicare Ems Group Uk Limited,648405,"47,336.48"
DOH,London Ambulance Service NHS Trust,02/03/2022,Computer Software,Asset Management,Creative Software Solutions (Europe) Ltd,648407,"50,382.00"
DOH,London Ambulance Service NHS Trust,01/03/2022,Interpretation Services,111 Nel Operations,Language Line,648685,"36,834.60"
DOH,London Ambulance Service NHS Trust,18/03/2022,Rent,Hart West,Amas Ltd/Common Receipts Account,648751,"39,244.80"
DOH,London Ambulance Service NHS Trust,18/03/2022,Service Charges,Hart West,Amas Ltd/Common Receipts Account,648751,"1,044.00"
DOH,London Ambulance Service NHS Trust,18/03/2022,Rent,Hart West,Amas Ltd/Common Receipts Account,648752,"38,625.60"
DOH,London Ambulance Service NHS Trust,18/03/2022,Service Charges,Hart West,Amas Ltd/Common Receipts Account,648752,969.00
DOH,London Ambulance Service NHS Trust,01/03/2022,Ambulance Equipment,Supply & Material Management,Mangar International Ltd,648798,"57,600.00"
DOH,London Ambulance Service NHS Trust,16/03/2022,Computer Hardware,Capital,Bt Plc,648818,"33,189.13"
DOH,London Ambulance Service NHS Trust,16/03/2022,Computer Hardware Maintenance,Infrastructure Modernisation,Bt Plc,648818,"3,219.84"
DOH,London Ambulance Service NHS Trust,16/03/2022,Computer Hardware,Capital,Bt Plc,648819,"33,189.14"
DOH,London Ambulance Service NHS Trust,16/03/2022,Computer Hardware Maintenance,Infrastructure Modernisation,Bt Plc,648819,"3,219.83"
DOH,London Ambulance Service NHS Trust,01/03/2022,Computer Software,Infrastructure Modernisation,Bt Plc,648820,"122,858.53"
DOH,London Ambulance Service NHS Trust,01/03/2022,Computer Hardware,Capital,Bt Plc,648820,"10,757.19"
DOH,London Ambulance Service NHS Trust,18/03/2022,Rent,Nets Orpington,Amas Ltd/Common Receipts Account,648847,"63,927.84"
DOH,London Ambulance Service NHS Trust,18/03/2022,Service Charges,Nets Orpington,Amas Ltd/Common Receipts Account,648847,"9,953.08"
DOH,London Ambulance Service NHS Trust,02/03/2022,Managed Service - Call Handler,Covid Contingency - Iuc Serv,Dhu 111 (East Midlands) Cic,649398,"178,090.31"
DOH,London Ambulance Service NHS Trust,25/03/2022,Rent,Cody Road Estates,Cbre Ltd,649558,"134,178.00"
DOH,London Ambulance Service NHS Trust,25/03/2022,Service Charges,Cody Road Estates,Cbre Ltd,649558,"3,710.92"
DOH,London Ambulance Service NHS Trust,01/03/2022,Managed Service - Call Handler,111 Iuc Central Cost,Herts Urgent Care,649615,"338,764.30"
DOH,London Ambulance Service NHS Trust,01/03/2022,Managed Service - Call Handler,111 Iuc Central Cost,Herts Urgent Care,649616,"50,157.09"
DOH,London Ambulance Service NHS Trust,16/03/2022,Computer Software,Supply & Material Management,Creative Software Solutions (Europe) Ltd,649716,"31,080.00"
DOH,London Ambulance Service NHS Trust,29/03/2022,Mobile Display Unit,Capital,Edc Systems Ltd T/A Traffilog,649724,"197,300.50"
DOH,London Ambulance Service NHS Trust,11/03/2022,Private Ambulance Hire,Covid-19 - Ambulance Services,Medicare Ems Group Uk Limited,649725,"38,408.20"
DOH,London Ambulance Service NHS Trust,11/03/2022,Professional Fees & Services,Trust Management,Association Of Ambulance Chief Executives,649753,"39,275.70"
DOH,London Ambulance Service NHS Trust,02/03/2022,Professional Fees & Services,Trust Management,Association Of Ambulance Chief Executives,649755,"36,443.22"
DOH,London Ambulance Service NHS Trust,04/03/2022,Course And Conference Fees,Hee Income 2021-22,University Of Hertfordshire,649774,"42,734.00"
DOH,London Ambulance Service NHS Trust,29/03/2022,Computer Software,Quality & Assurance Management,Datix Ltd,649775,"43,212.09"
DOH,London Ambulance Service NHS Trust,09/03/2022,Consultancy/Professional Ppe,Capital,Rider Levett Bucknall Uk Limited,649927,"26,887.52"
DOH,London Ambulance Service NHS Trust,16/03/2022,Security Firms,Hq Building Services,Profile Security Services Limited,649930,"27,057.77"
DOH,London Ambulance Service NHS Trust,09/03/2022,Cleaning Of Premises,Covid-19 - Property,Lakethorne Ltd,649937,"21,045.35"
DOH,London Ambulance Service NHS Trust,11/03/2022,Consultancy Fees,Strategy,Moorhouse Consulting,650037,"44,160.00"
DOH,London Ambulance Service NHS Trust,25/03/2022,Computer Software Maintenance,Epcr Revenue Project Cost,Cleric Computer Services Ltd,650212,"150,000.00"
DOH,London Ambulance Service NHS Trust,09/03/2022,Computer Hardware,Capital,Dell Computer Corporation Ltd,650290,"228,983.52"
DOH,London Ambulance Service NHS Trust,25/03/2022,Professional Fees & Services,Ambulance Ops Hub Phase 1,Pricewaterhousecoopers,650347,"42,000.00"
DOH,London Ambulance Service NHS Trust,25/03/2022,Professional Fees & Services,Ambulance Ops Hub Phase 1,Pricewaterhousecoopers,650348,"72,000.00"
DOH,London Ambulance Service NHS Trust,25/03/2022,Rent,Logistics Support Unit,Segro Plc,650843,"145,198.80"
DOH,London Ambulance Service NHS Trust,04/03/2022,Managed Service - Blue Light,Covid-19 - Ambulance Services,Veho Solutions Ltd,650870,"72,045.84"
DOH,London Ambulance Service NHS Trust,11/03/2022,Computer Hardware,Capital,Dell Computer Corporation Ltd,650882,"45,796.70"
DOH,London Ambulance Service NHS Trust,16/03/2022,Buildings,Capital,Logan Construction,650890,"266,979.60"
DOH,London Ambulance Service NHS Trust,18/03/2022,Rent,Pocock Street,Colliers International Property Advisers Llp,650921,"89,700.00"
DOH,London Ambulance Service NHS Trust,23/03/2022,Occupational Health Fees,P&C Management,People Asset Management Ltd,651055,"88,759.20"
DOH,London Ambulance Service NHS Trust,23/03/2022,Managed Service - Call Handler,111 Nwl Operations,Practice Plus Group Urgent Care Limited,651072,"639,555.10"
DOH,London Ambulance Service NHS Trust,16/03/2022,Buildings,Capital,Provelio Ltd,651090,"27,000.00"
DOH,London Ambulance Service NHS Trust,25/03/2022,Professional Fees & Services,Voice Infrastructure,Solution Performance Group Ltd (Spg),651167,"132,066.00"
DOH,London Ambulance Service NHS Trust,25/03/2022,Professional Fees & Services,Networks,Solution Performance Group Ltd (Spg),651168,"26,769.60"
DOH,London Ambulance Service NHS Trust,18/03/2022,Mobile Phone Rental,Telecommunications,Vodafone Corporate Limited,651198,"127,487.33"
DOH,London Ambulance Service NHS Trust,25/03/2022,Managed Service - Call Handler,111 Nwl Operations,London Central And West Ucc,651204,"247,990.75"
DOH,London Ambulance Service NHS Trust,16/03/2022,Private Ambulance Hire,Covid-19 - Ambulance Services,Medicare Ems Group Uk Limited,651239,"35,927.45"
DOH,London Ambulance Service NHS Trust,23/03/2022,Computer Peripherals & Access,Capital,Dell Computer Corporation Ltd,651290,"51,000.00"
DOH,London Ambulance Service NHS Trust,16/03/2022,Computer Peripherals & Access,Capital,Dell Computer Corporation Ltd,651291,"51,000.00"
DOH,London Ambulance Service NHS Trust,23/03/2022,Computer Peripherals & Access,Capital,Dell Computer Corporation Ltd,651292,"51,000.00"
DOH,London Ambulance Service NHS Trust,16/03/2022,Computer Hardware,Capital,Norbeck Ltd,651310,"33,146.47"
DOH,London Ambulance Service NHS Trust,16/03/2022,Project Management,Capital,Norbeck Ltd,651310,"21,291.60"
DOH,London Ambulance Service NHS Trust,09/03/2022,Agency Incentive & Bonus,111 Nel Operations - Cas,Hays Specialist Recruitment Ltd,651322,"58,664.16"
DOH,London Ambulance Service NHS Trust,09/03/2022,Managed Service - Adv Prac,111 Nel Operations - Cas,Hays Specialist Recruitment Ltd,651322,"530,897.78"
DOH,London Ambulance Service NHS Trust,09/03/2022,Managed Service - Call Handler,111 Nel Operations - Cas,Hays Specialist Recruitment Ltd,651322,"104,693.17"
DOH,London Ambulance Service NHS Trust,09/03/2022,Managed Service - Gps,111 Nel Operations - Cas,Hays Specialist Recruitment Ltd,651322,"1,144,802.83"
DOH,London Ambulance Service NHS Trust,09/03/2022,Managed Service - Nurses,111 Nel Operations - Cas,Hays Specialist Recruitment Ltd,651322,"76,695.65"
DOH,London Ambulance Service NHS Trust,09/03/2022,Managed Service - Gps,Managed Service - Adv Para Pra,Hays Specialist Recruitment Ltd,651322,"18,989.93"
DOH,London Ambulance Service NHS Trust,25/03/2022,Professional Fees & Services,Fleet Support Services,Brs Jobs Ltd,651409,"70,730.10"
DOH,London Ambulance Service NHS Trust,16/03/2022,Computer Hardware,Eoc Trainees,Dell Computer Corporation Ltd,651733,"26,550.00"
DOH,London Ambulance Service NHS Trust,16/03/2022,Computer Periphs & Accessories,Eoc Trainees,Dell Computer Corporation Ltd,651733,600.00
DOH,London Ambulance Service NHS Trust,23/03/2022,Tyres,Fleet Support Services,Ats Euromaster Ltd,651916,"31,616.36"
DOH,London Ambulance Service NHS Trust,25/03/2022,Professional Fees & Services,Infrastructure Modernisation,Mason Advisory Limited,651958,"84,321.07"
DOH,London Ambulance Service NHS Trust,25/03/2022,Private Ambulance Hire,Covid-19 - Ambulance Services,Medicare Ems Group Uk Limited,651999,"30,408.07"
DOH,London Ambulance Service NHS Trust,09/03/2022,Computer Hardware,Body Worn Video Camera (Pilot),Motorola Solutions Uk Ltd,652019,"34,915.20"
DOH,London Ambulance Service NHS Trust,16/03/2022,Make Ready Support,Make Ready Service,Interserve Hospital Services,652022,"264,526.73"
DOH,London Ambulance Service NHS Trust,18/03/2022,Cleaning Of Premises,Covid-19 - Property,Lakethorne Ltd,652517,"28,289.45"
DOH,London Ambulance Service NHS Trust,23/03/2022,Professional Fees & Services,Business Intelligence,Tet Limited,652536,"67,426.66"
DOH,London Ambulance Service NHS Trust,23/03/2022,Data Network Rental,Networks,Bt Plc,652548,"36,701.40"
DOH,London Ambulance Service NHS Trust,23/03/2022,Project Management Services,Networks,Bt Plc,652548,"5,040.01"
DOH,London Ambulance Service NHS Trust,18/03/2022,Capitalised Software,Capital,Cleric Computer Services Ltd,652664,"144,000.00"
DOH,London Ambulance Service NHS Trust,18/03/2022,Agency Call Handlers,111 Nel Operations,Integrated Care Group Ltd,652685,"67,686.00"
DOH,London Ambulance Service NHS Trust,18/03/2022,Agency Call Handlers,111 Nel Operations,Integrated Care Group Ltd,652686,"67,705.20"
DOH,London Ambulance Service NHS Trust,18/03/2022,Agency Call Handlers,111 Sel Operations,Integrated Care Group Ltd,652687,"41,924.40"
DOH,London Ambulance Service NHS Trust,16/03/2022,Agency Call Handlers,111 Nel Operations,Integrated Care Group Ltd,652688,"45,029.69"
DOH,London Ambulance Service NHS Trust,16/03/2022,Agency Call Handlers,111 Nel Operations,Integrated Care Group Ltd,652689,"97,706.77"
DOH,London Ambulance Service NHS Trust,18/03/2022,Hire Of Meeting Rooms,Trust Management,The Independents Hotel Reservations Ltd,652691,"60,000.00"
DOH,London Ambulance Service NHS Trust,29/03/2022,Buildings,Capital,Fletchers Facilities Ltd,652840,"89,506.68"
DOH,London Ambulance Service NHS Trust,25/03/2022,Consultancy Fees,Director Of Finance,Ppl (Private Public Ltd),652850,"59,310.00"
DOH,London Ambulance Service NHS Trust,23/03/2022,Computer Hardware,Capital,Norbeck Ltd,652871,"33,146.47"
DOH,London Ambulance Service NHS Trust,23/03/2022,Project Management,Capital,Norbeck Ltd,652871,"21,291.60"
DOH,London Ambulance Service NHS Trust,25/03/2022,Computer Hardware,Capital,Norbeck Ltd,652878,"34,483.99"
DOH,London Ambulance Service NHS Trust,25/03/2022,Project Management,Capital,Norbeck Ltd,652878,"32,460.12"
DOH,London Ambulance Service NHS Trust,25/03/2022,Computer Hardware,Capital,Norbeck Ltd,652879,"38,077.10"
DOH,London Ambulance Service NHS Trust,18/03/2022,Cleaning Of Premises,Property Management,Lakethorne Ltd,652885,"112,087.01"
DOH,London Ambulance Service NHS Trust,23/03/2022,External Training Services,Trust Management,Hennessy Consulting Limited,653112,"74,700.00"
DOH,London Ambulance Service NHS Trust,23/03/2022,External Training Services,Trust Management,Hennessy Consulting Limited,653113,"83,475.00"
DOH,London Ambulance Service NHS Trust,23/03/2022,Computer Hardware,Customer Support,Dell Computer Corporation Ltd,653420,"27,000.00"
DOH,London Ambulance Service NHS Trust,25/03/2022,Computer Software,Scheduling Department Mgmt,Working Time Solutions Ltd,653421,"52,656.00"
DOH,London Ambulance Service NHS Trust,23/03/2022,Vehicles,Capital,Levc,653473,"51,569.58"
DOH,London Ambulance Service NHS Trust,23/03/2022,Vehicles,Capital,Levc,653474,"51,569.58"
DOH,London Ambulance Service NHS Trust,23/03/2022,Vehicles,Capital,Levc,653475,"51,569.58"
DOH,London Ambulance Service NHS Trust,23/03/2022,Vehicles,Capital,Levc,653476,"51,569.58"
DOH,London Ambulance Service NHS Trust,23/03/2022,Vehicles,Capital,Levc,653477,"51,569.58"
DOH,London Ambulance Service NHS Trust,18/03/2022,Buildings,Capital,Logan Construction,653487,"150,385.25"
DOH,London Ambulance Service NHS Trust,25/03/2022,Buildings,Capital,Logan Construction,653488,"139,148.94"
DOH,London Ambulance Service NHS Trust,18/03/2022,Make Ready Support,Covid-19 - Logistics,Interserve Hospital Services,653656,"168,764.25"
DOH,London Ambulance Service NHS Trust,18/03/2022,Make Ready Support,Make Ready Service,Interserve Hospital Services,653657,"395,106.00"
DOH,London Ambulance Service NHS Trust,23/03/2022,Interpretation Services,111 Nel Operations,Language Line,653667,"24,380.67"
DOH,London Ambulance Service NHS Trust,25/03/2022,Professional Fees & Services,Business Relationship Mgmt,Association Of Ambulance Chief Executives,653744,"35,167.97"
DOH,London Ambulance Service NHS Trust,25/03/2022,Private Ambulance Hire,Covid-19 - Ambulance Services,Se Medical Limited,653831,"25,805.36"
DOH,London Ambulance Service NHS Trust,25/03/2022,Private Ambulance Hire,Covid-19 - Ambulance Services,Se Medical Limited,653837,"30,683.52"
DOH,London Ambulance Service NHS Trust,23/03/2022,Electrical Installations,Capital,Airwave Solutions Limited,653838,"31,385.46"
DOH,London Ambulance Service NHS Trust,25/03/2022,Buildings,Capital,Logan Construction,653842,"87,654.00"
DOH,London Ambulance Service NHS Trust,25/03/2022,Buildings,Capital,Ajar Tec Ltd,653843,"159,149.59"
DOH,London Ambulance Service NHS Trust,25/03/2022,Computer Hardware,Cad Revenue Project Costs,Dell Computer Corporation Ltd,653878,"58,500.00"
DOH,London Ambulance Service NHS Trust,23/03/2022,Resus Equipment Purchase,Newham Dockside Edu Centre,Laerdal Medical As,654197,"33,924.70"
DOH,London Ambulance Service NHS Trust,25/03/2022,Professional Fees & Services,Business Intelligence,Tet Limited,654224,"58,909.34"
DOH,London Ambulance Service NHS Trust,29/03/2022,Security Equipment Maintenance,Property Management,Hospital Metalcraft Limited,654226,"43,434.72"
DOH,London Ambulance Service NHS Trust,29/03/2022,Computer Software Maintenance,Asset Management,Creative Software Solutions (Europe) Ltd,654262,"143,095.20"
DOH,London Ambulance Service NHS Trust,29/03/2022,Buildings,Capital,Fletchers Facilities Ltd,654301,"57,977.89"
DOH,London Ambulance Service NHS Trust,23/03/2022,Computer Software Maintenance,Systems,Boxxe,654346,"25,237.76"
DOH,London Ambulance Service NHS Trust,29/03/2022,Buildings,Capital,A & D Industrial Doors Ltd,654452,"59,649.54"
DOH,London Ambulance Service NHS Trust,29/03/2022,Vehicles,Capital,Motus Truck & Van,654589,"61,894.62"
DOH,London Ambulance Service NHS Trust,29/03/2022,Agency Call Handlers,111 Sel Operations,Integrated Care Group Ltd,654660,"88,991.50"
DOH,London Ambulance Service NHS Trust,29/03/2022,Agency Call Handlers,111 Nel Operations,Integrated Care Group Ltd,654663,"96,700.82"
DOH,London Ambulance Service NHS Trust,25/03/2022,Consultancy/Professional Ppe,Capital,Rider Levett Bucknall Uk Limited,654946,"30,285.26"
DOH,London Ambulance Service NHS Trust,31/03/2022,Vehicles,Capital,Motus Truck & Van,655031,"61,894.62"
DOH,London Ambulance Service NHS Trust,31/03/2022,Vehicles,Capital,Motus Truck & Van,655032,"61,894.62"
DOH,London Ambulance Service NHS Trust,31/03/2022,Vehicles,Capital,Motus Truck & Van,655033,"61,894.62"
DOH,London Ambulance Service NHS Trust,31/03/2022,Vehicles,Capital,Motus Truck & Van,655034,"61,894.62"
DOH,London Ambulance Service NHS Trust,31/03/2022,Vehicles,Capital,Motus Truck & Van,655035,"61,894.62"
DOH,London Ambulance Service NHS Trust,31/03/2022,Vehicles,Capital,Motus Truck & Van,655036,"61,894.62"
DOH,London Ambulance Service NHS Trust,31/03/2022,Vehicles,Capital,Motus Truck & Van,655037,"61,894.62"
DOH,London Ambulance Service NHS Trust,31/03/2022,Vehicles,Capital,Motus Truck & Van,655038,"61,894.62"
DOH,London Ambulance Service NHS Trust,31/03/2022,Vehicles,Capital,Motus Truck & Van,655039,"61,894.62"
DOH,London Ambulance Service NHS Trust,25/03/2022,Furniture & Fittings,Capital,Bhc Healthcare Furniture Ltd,655102,"25,233.38"
DOH,London Ambulance Service NHS Trust,31/03/2022,Computer Hardware Maintenance,Make Ready - Insource Costs,Cdw Ltd,655141,"41,841.60"
DOH,London Ambulance Service NHS Trust,29/03/2022,Vehicles,Capital,Ferno (Uk),655451,"27,360.00"
DOH,London Ambulance Service NHS Trust,29/03/2022,Vehicles,Capital,Ferno (Uk),655547,"115,107.62"
DOH,London Ambulance Service NHS Trust,29/03/2022,Furniture & Fittings,Capital,Sbfi Limited,655642,"100,599.60"
DOH,London Ambulance Service NHS Trust,29/03/2022,Buildings,Capital,Calibration Engineering Services Limited,655711,"42,676.20"
DOH,London Ambulance Service NHS Trust,31/03/2022,Mobile Display Unit,Capital,Edc Systems Ltd T/A Traffilog,655749,"164,208.52"
DOH,London Ambulance Service NHS Trust,31/03/2022,Computer Hardware,Capital,Cdw Ltd,656242,"194,078.40"
DOH,London Ambulance Service NHS Trust,31/03/2022,Computer Hardware Maintenance,Make Ready - Insource Costs,Cdw Ltd,656242,"145,152.00"
DOH,London Ambulance Service NHS Trust,31/03/2022,Vehicles,Capital,Ford Motor Company Ltd,656243,"488,328.48"
DOH,London Ambulance Service NHS Trust,31/03/2022,Vehicles,Capital,Ford Motor Company Ltd,656246,"245,287.54"
DOH,London Ambulance Service NHS Trust,25/03/2022,Medical Gas,Director Of Ops,British Oxygen,94228,"155,346.07"
DOH,London Ambulance Service NHS Trust,05/03/2022,BP Control Account,Balance Sheet,BP Oil,94088,"125,607.39"
DOH,London Ambulance Service NHS Trust,31/03/2022,BP Control Account,Balance Sheet,BP Oil,94350,"152,885.59"
DOH,London Ambulance Service NHS Trust,01/03/2022,Ensign Insurance Pre-Payment,Balance Sheet,QBE INSURANCE / EU,93734,"334,485.41"
DOH,London Ambulance Service NHS Trust,31/03/2022,Vehicles,Capital,Ford Motor Company Ltd,656030,1363063.57
DOH,London Ambulance Service NHS Trust,31/03/2022,Vehicles,Capital,Ford Motor Company Ltd,656029,2145726.08
DOH,London Ambulance Service NHS Trust,31/03/2022,Vehicles,Capital,Ford Motor Company Ltd,656028,1979489.98
DOH,London Ambulance Service NHS Trust,31/03/2022,Vehicles,Capital,Ford Motor Company Ltd,655778,2676962.29
DOH,London Ambulance Service NHS Trust,31/03/2022,Vehicles,Capital,Ford Motor Company Ltd,656245,71992.39
DOH,London Ambulance Service NHS Trust,31/03/2022,Vehicles,Capital,Ford Motor Company Ltd,656248,211852.87
DOH,London Ambulance Service NHS Trust,31/03/2022,Vehicles,Capital,Ford Motor Company Ltd,656244,56478.76
DOH,London Ambulance Service NHS Trust,31/03/2022,Vehicles,Capital,Ford Motor Company Ltd,656565,215077.75
DOH,London Ambulance Service NHS Trust,31/03/2022,Vehicles,Capital,Ford Motor Company Ltd,656027,2183983.82
DOH,London Ambulance Service NHS Trust,31/03/2022,Vehicles,Capital,Chargemaster Limited t/a BP Pulse,656654,654853.8
